bitfinex-derivatives/quotes_SOLF0:USTF0_20220108
["timestamp","ask_amount","ask_price","bid_price","bid_amount"]
[1641645150756,16.94789602,145.67,145.59,48.68204636]
[1641645151358,16.94789602,145.67,145.6,38.72614636]
[1641645152658,16.94789602,145.67,145.61,3.9999]
[1641645152859,16.94789602,145.67,145.6,38.72614636]
[1641645153058,16.94789602,145.67,145.59,44.68214636]
[1641645153459,5.49230621,145.66,145.59,44.68214636]
[1641645153658,27.66479,145.65,145.59,44.68214636]
[1641645153858,27.66479,145.65,145.59,5.956]
[1641645154059,27.66479,145.65,145.58,51.8899101]
[1641645154658,27.66479,145.65,145.58,38.72614636]
[1641645154861,27.66479,145.65,145.57,174.32774636]
[1641645155662,5.49320381,145.64,145.57,174.32774636]
[1641645156062,5.49320381,145.64,145.59,3.9999]
[1641645156261,27.66479,145.65,145.61,3.9999]
[1641645156561,27.66479,145.66,145.62,3.9999]
[1641645156762,23.53833176,145.67,145.62,10.5379]
[1641645156961,4.86760459,145.69,145.63,3.9999]
[1641645157162,5.4909621,145.7,145.63,3.9999]
[1641645157361,5.4909621,145.7,145.63,64.2586]
[1641645157861,33.1557521,145.7,145.63,64.2586]
[1641645159863,6.86789602,145.67,145.61,27.66479]
[1641645160063,15.62189602,145.67,145.61,27.66479]
[1641645160264,15.62189602,145.67,145.6,66.2329]
[1641645160663,5.49229904,145.66,145.6,66.2329]
[1641645160864,9.49229904,145.66,145.62,1.93290986]
[1641645161064,5.49341532,145.63,145.62,1.93290986]
[1641645161265,13.41441532,145.63,145.62,1.93290986]
[1641645161864,41.07920532,145.63,145.62,1.93290986]
[1641645162063,5.49415316,145.61,145.58,1.93290986]
[1641645163063,5.49415316,145.61,145.57,1.93290986]
[1641645165466,12.36511647,145.61,145.57,1.93290986]
[1641645165665,27.66479,145.6,145.57,1.93290986]
[1641645167868,35.57579,145.6,145.57,1.93290986]
[1641645170972,41.07041563,145.6,145.57,1.93290986]
[1641645173976,41.07041563,145.6,145.55,16.49024615]
[1641645176777,4.0,145.56,145.55,14.55733629]
[1641645176978,5.49650295,145.55,145.51,10.26614636]
[1641645177179,5.49832266,145.5,145.47,57.8622945]
[1641645177478,10.88432266,145.5,145.47,57.8622945]
[1641645177880,27.66479,145.49,145.47,57.8622945]
[1641645178180,27.66479,145.49,145.46,67.4153]
[1641645178380,27.66479,145.49,145.44,66.3327]
[1641645178981,27.66479,145.49,145.44,70.3326]
[1641645179181,27.66479,145.49,145.44,66.3327]
[1641645179381,27.66479,145.49,145.44,70.3326]
[1641645179782,27.66479,145.52,145.44,70.3326]
[1641645181285,27.66479,145.52,145.44,66.3327]
[1641645181891,31.66479,145.52,145.44,66.3327]
[1641645182291,4.0,145.51,145.44,66.3327]
[1641645182590,17.57623538,145.51,145.44,66.3327]
[1641645183292,13.57623538,145.51,145.44,66.3327]
[1641645183892,27.66479,145.48,145.44,66.3327]
[1641645185495,5.49823538,145.51,145.44,66.3327]
[1641645185795,5.49823538,145.51,145.44,104.95939]
[1641645186195,27.66479,145.52,145.45,3.9999]
[1641645186395,27.66479,145.52,145.44,104.95939]
[1641645188099,27.66479,145.52,145.44,100.95949]
[1641645188596,27.66479,145.52,145.44,104.95939]
[1641645188797,27.66479,145.52,145.45,3.9999]
[1641645190198,10.08,145.56,145.45,3.9999]
[1641645190498,10.08,145.56,145.44,125.66218]
[1641645190697,5.49662072,145.55,145.44,125.66218]
[1641645191897,27.66479,145.53,145.44,125.66218]
[1641645192097,33.64779,145.53,145.44,125.66218]
[1641645192297,33.64779,145.53,145.44,121.66228]
[1641645192698,39.1452455,145.53,145.44,121.66228]
[1641645192898,39.1452455,145.53,145.45,12.40801088]
[1641645193799,39.1452455,145.53,145.44,97.99739]
[1641645194100,5.49818439,145.51,145.44,93.99749]
[1641645197806,9.49881058,145.49,145.44,66.3327]
[1641645198009,15.90181058,145.49,145.44,66.3327]
[1641645199610,21.40071783,145.49,145.44,66.3327]
[1641645203911,17.40071783,145.49,145.45,3.9999]
[1641645204110,18.96880014,145.53,145.45,3.9999]
[1641645204310,12.37198427,145.53,145.45,3.9999]
[1641645204511,12.37198427,145.53,145.46,38.80939199]
[1641645205211,5.49724207,145.53,145.46,38.80939199]
[1641645205914,33.16203207,145.53,145.46,38.80939199]
[1641645206115,5.49810409,145.51,145.46,38.80939199]
[1641645206314,12.19310409,145.51,145.46,38.80939199]
[1641645206914,9.49914643,145.48,145.46,38.80939199]
[1641645207114,9.49914643,145.48,145.45,12.75662495]
[1641645207115,4.0,145.47,145.45,46.06574893]
[1641645207817,13.23306794,145.48,145.45,38.80939199]
[1641645208017,6.87828868,145.46,145.44,14.61415676]
[1641645208316,10.60035206,145.45,145.44,14.30435676]
[1641645208517,14.28735206,145.45,145.44,9.12435676]
[1641645208919,14.28735206,145.45,145.4,38.80939199]
[1641645209117,4.0,145.44,145.36,105.99889199]
[1641645209317,18.28735206,145.45,145.36,103.99889199]
[1641645209519,4.0,145.42,145.36,103.99889199]
[1641645209718,8.665,145.42,145.36,103.99889199]
[1641645209920,27.66479,145.41,145.36,103.99889199]
[1641645210424,27.66479,145.41,145.36,65.1895]
[1641645211224,4.0,145.39,145.35,38.80939199]
[1641645211423,14.81136526,145.39,145.33,38.80939199]
[1641645212023,27.66479,145.37,145.33,38.80939199]
[1641645212627,33.16803153,145.37,145.33,38.80939199]
[1641645213326,33.16803153,145.37,145.31,66.7027]
[1641645213726,27.66479,145.37,145.31,66.7027]
[1641645216931,27.66479,145.37,145.32,1.80874955]
[1641645218637,5.50358831,145.36,145.31,66.7027]
[1641645218838,12.15558831,145.36,145.31,66.7027]
[1641645220039,27.66479,145.34,145.31,66.7027]
[1641645220242,27.66479,145.34,145.29,136.6745]
[1641645220442,27.66479,145.34,145.29,70.0513]
[1641645224946,33.16923693,145.34,145.29,70.0513]
[1641645229554,33.16923693,145.34,145.29,66.0514]
[1641645229955,5.50480409,145.33,145.29,66.0514]
[1641645230155,27.66479,145.3,145.29,66.0514]
[1641645230357,33.13479,145.3,145.25,130.4578]
[1641645230556,33.13479,145.3,145.25,65.3697]
[1641645231560,40.02041969,145.3,145.26,1.96544108]
[1641645231760,6.88657806,145.28,145.26,1.96544108]
[1641645232560,33.13479,145.3,145.26,1.96544108]
[1641645232760,27.66479,145.3,145.22,3.9999]
[1641645233159,27.66479,145.3,145.23,3.9999]
[1641645233359,27.66479,145.3,145.21,1.96544108]
[1641645233360,27.66479,145.3,145.21,3.68544108]
[1641645233563,35.79679,145.3,145.21,1.96544108]
[1641645233960,35.79679,145.3,145.2,31.66469]
[1641645233961,35.79679,145.3,145.23,1.96544108]
[1641645234963,35.79679,145.3,145.21,1.96544108]
[1641645235661,12.3923513,145.29,145.21,1.96544108]
[1641645236864,12.3923513,145.29,145.2,1.96544108]
[1641645237464,12.3923513,145.29,145.2,5.96534108]
[1641645238266,12.3923513,145.29,145.2,1.96544108]
[1641645238966,5.50730403,145.27,145.21,1.96544108]
[1641645239165,11.89830403,145.27,145.21,1.96544108]
[1641645240168,39.56309403,145.27,145.2,16.52243025]
[1641645241767,39.56309403,145.27,145.21,14.55698917]
[1641645243569,39.56309403,145.27,145.2,1.96544108]
[1641645244369,39.56309403,145.27,145.2,16.52243025]
[1641645245170,34.05579,145.27,145.2,16.52243025]
[1641645245371,34.05579,145.27,145.2,20.52233025]
[1641645245570,34.05579,145.27,145.2,16.52243025]
[1641645246171,34.05579,145.27,145.2,20.52233025]
[1641645246471,34.05579,145.27,145.2,16.52243025]
[1641645246871,34.05579,145.27,145.22,14.55698917]
[1641645247470,6.89013677,145.23,145.22,4.13698917]
[1641645247671,12.72813677,145.23,145.22,4.13698917]
[1641645247870,18.23680121,145.23,145.22,4.13698917]
[1641645248772,18.23680121,145.23,145.18,38.80939199]
[1641645248970,5.50974726,145.2,145.15,62.691]
[1641645249173,12.18574726,145.2,145.15,62.691]
[1641645250172,6.676,145.2,145.15,62.691]
[1641645252672,27.66479,145.21,145.15,66.6909]
[1641645252873,27.66479,145.21,145.16,71.4914]
[1641645253173,27.66479,145.24,145.16,71.4914]
[1641645253672,27.66479,145.24,145.16,75.4913]
[1641645253872,27.66479,145.24,145.16,71.4914]
[1641645254075,27.66479,145.24,145.16,62.6414]
[1641645254675,37.17328213,145.24,145.16,62.6414]
[1641645254974,6.88942473,145.22,145.16,62.6414]
[1641645255174,13.86342473,145.22,145.16,62.6414]
[1641645256277,27.66479,145.21,145.16,66.6413]
[1641645257081,27.66479,145.21,145.16,62.6414]
[1641645257278,33.83579,145.21,145.16,62.6414]
[1641645258279,39.3452366,145.21,145.16,62.6414]
[1641645260981,33.83579,145.21,145.16,62.6414]
[1641645264083,33.83579,145.21,145.13,3.9999]
[1641645264283,33.83579,145.21,145.14,66.5247]
[1641645264484,5.51002366,145.19,145.14,66.5247]
[1641645265483,5.51002366,145.19,145.15,2.15887904]
[1641645266183,27.66479,145.18,145.15,2.15887904]
[1641645266383,35.23279,145.18,145.15,2.15887904]
[1641645266783,40.74319495,145.18,145.15,2.15887904]
[1641645270585,5.51141182,145.16,145.15,2.15887904]
[1641645271488,5.51141182,145.16,145.14,38.80939199]
[1641645272288,27.66479,145.15,145.12,54.755267]
[1641645272487,34.85079,145.15,145.12,54.755267]
[1641645272887,34.85079,145.15,145.12,40.96827103]
[1641645273088,34.85079,145.15,145.12,2.15887904]
[1641645273890,34.85079,145.15,145.11,54.76189641]
[1641645274493,5.51218354,145.14,145.11,54.76189641]
[1641645277198,5.51218354,145.14,145.12,38.80939199]
[1641645277398,27.66479,145.15,145.12,38.80939199]
[1641645278301,27.66479,145.15,145.13,38.80939199]
[1641645278502,12.40534179,145.14,145.13,38.80939199]
[1641645278702,20.60334179,145.14,145.13,38.80939199]
[1641645279401,20.60334179,145.14,145.11,16.77455072]
[1641645279901,5.51252074,145.13,145.11,16.77455072]
[1641645280302,27.66479,145.12,145.11,14.61567168]
[1641645280503,27.66479,145.12,145.11,9.10197665]
[1641645281303,31.66479,145.12,145.08,40.96827103]
[1641645281504,4.0,145.09,145.06,28.56438624]
[1641645281704,8.434,145.09,145.06,27.64438624]
[1641645281904,8.434,145.09,145.06,24.02438624]
[1641645282307,27.66479,145.07,144.97,124.52731594]
[1641645282608,34.28233581,145.07,144.97,99.76159]
[1641645282808,27.66479,145.07,144.97,99.76159]
[1641645283311,27.66479,145.07,144.97,95.76169]
[1641645284112,31.66479,145.07,144.97,95.76169]
[1641645284915,27.66479,145.07,144.97,95.76169]
[1641645285213,31.66479,145.07,144.97,95.76169]
[1641645285413,27.66479,145.07,144.97,95.76169]
[1641645286615,27.66479,145.07,144.99,3.9999]
[1641645286816,33.1795704,145.07,144.99,3.9999]
[1641645287016,33.1795704,145.07,144.97,95.76169]
[1641645287616,33.1795704,145.07,144.98,3.9999]
[1641645288017,33.1795704,145.07,144.97,95.76169]
[1641645288217,37.1795704,145.07,144.97,95.76169]
[1641645288617,33.1795704,145.07,144.97,95.76169]
[1641645289220,37.1795704,145.07,144.97,95.76169]
[1641645289617,33.1795704,145.07,144.97,95.76169]
[1641645290223,10.44,145.1,145.0,3.9999]
[1641645290418,22.04210383,145.14,145.07,27.66479]
[1641645290620,4.86760459,145.13,145.07,35.62979]
[1641645290818,4.86760459,145.13,145.11,3.9999]
[1641645291019,4.86760459,145.13,145.11,8.504]
[1641645291217,10.12,145.19,145.11,8.504]
[1641645291420,6.89108638,145.18,145.11,8.504]
[1641645292222,12.40154407,145.18,145.11,8.504]
[1641645292820,6.89108638,145.18,145.11,12.5039]
[1641645293019,27.66479,145.2,145.11,12.5039]
[1641645293219,27.66479,145.2,145.15,3.9999]
[1641645293419,27.66479,145.2,145.15,11.1409]
[1641645293619,27.66479,145.2,145.16,3.9999]
[1641645293820,27.66479,145.22,145.17,3.9999]
[1641645294018,14.81623495,145.28,145.17,3.9999]
[1641645294421,14.81623495,145.28,145.24,27.66479]
[1641645294622,14.81623495,145.28,145.24,35.00679]
[1641645295120,7.92965689,145.28,145.24,35.00679]
[1641645295327,6.88491859,145.31,145.24,35.00679]
[1641645295922,6.88491859,145.31,145.24,27.18251355]
[1641645296323,6.88491859,145.31,145.27,27.66479]
[1641645296923,7.92740082,145.32,145.27,27.66479]
[1641645297726,27.66479,145.35,145.27,27.66479]
[1641645297929,6.88491859,145.31,145.27,27.66479]
[1641645298126,10.88491859,145.31,145.27,27.66479]
[1641645298329,4.0,145.28,145.27,27.66479]
[1641645298531,5.709,145.28,145.24,19.84051355]
[1641645300532,15.21594134,145.28,145.22,90.07869]
[1641645300832,4.0,145.27,145.22,27.66479]
[1641645301030,5.50815864,145.24,145.22,27.66479]
[1641645301230,18.68963422,145.24,145.22,27.66479]
[1641645301430,18.68963422,145.24,145.17,63.5599]
[1641645301631,22.68963422,145.24,145.17,63.5599]
[1641645301831,18.68963422,145.24,145.17,63.5599]
[1641645302432,18.68963422,145.24,145.17,91.22469]
[1641645302634,22.68963422,145.24,145.17,91.22469]
[1641645303136,5.50898548,145.22,145.17,91.22469]
[1641645303336,5.50898548,145.22,145.17,27.66479]
[1641645303533,13.18147558,145.24,145.17,27.66479]
[1641645304235,6.293,145.24,145.17,27.66479]
[1641645305739,27.66479,145.26,145.17,27.66479]
[1641645305936,27.66479,145.26,145.17,36.03579]
[1641645306437,27.66479,145.26,145.2,27.66479]
[1641645306638,4.0,145.25,145.2,27.66479]
[1641645306836,10.241,145.25,145.2,27.66479]
[1641645307037,6.241,145.25,145.2,27.66479]
[1641645308438,5.50771569,145.26,145.2,27.66479]
[1641645308638,6.60811542,145.28,145.2,27.66479]
[1641645310545,6.60811542,145.28,145.23,27.66479]
[1641645310946,10.60811542,145.28,145.23,27.66479]
[1641645311345,4.0,145.27,145.23,27.66479]
[1641645311542,8.334,145.27,145.23,27.66479]
[1641645311747,8.334,145.27,145.2,27.66479]
[1641645312545,8.334,145.27,145.2,55.32958]
[1641645315853,8.334,145.27,145.2,59.32948]
[1641645316553,8.334,145.27,145.25,27.66479]
[1641645316753,6.60811542,145.28,145.25,27.66479]
[1641645319856,4.0,145.26,145.25,27.66479]
[1641645320056,11.64,145.26,145.25,27.66479]
[1641645320260,11.64,145.26,145.22,14.48822252]
[1641645320458,4.0,145.23,145.22,3.66822252]
[1641645320659,17.81766206,145.23,145.22,3.66822252]
[1641645321059,17.81766206,145.23,145.15,160.13819]
[1641645321261,4.0,145.22,145.15,160.13819]
[1641645322160,4.0,145.22,145.16,2.23118361]
[1641645322360,4.0,145.21,145.16,2.23118361]
[1641645322562,4.0,145.22,145.16,2.23118361]
[1641645322962,4.0,145.2,145.16,2.23118361]
[1641645323164,8.441,145.2,145.16,2.23118361]
[1641645324264,6.88966206,145.23,145.16,2.23118361]
[1641645325064,6.88966206,145.23,145.16,40.94297663]
[1641645326068,16.3985106,145.23,145.16,54.95060111]
[1641645326968,16.3985106,145.23,145.16,2.23118361]
[1641645327668,5.50957258,145.21,145.16,2.23118361]
[1641645327869,13.51457258,145.21,145.16,2.23118361]
[1641645328469,17.51457258,145.21,145.16,2.23118361]
[1641645328669,27.66479,145.2,145.16,2.23118361]
[1641645329170,13.51457258,145.21,145.16,2.23118361]
[1641645329570,5.50973372,145.2,145.16,2.23118361]
[1641645330570,5.50973372,145.2,145.18,27.66479]
[1641645336480,6.88966206,145.23,145.18,27.66479]
[1641645336882,6.88966206,145.23,145.19,2.13317711]
[1641645339382,6.60981869,145.24,145.19,2.13317711]
[1641645339781,6.6089506,145.26,145.19,2.13317711]
[1641645340581,6.6089506,145.26,145.21,27.66479]
[1641645341581,6.6089506,145.26,145.22,2.13317711]
[1641645341882,5.50837994,145.24,145.22,2.13317711]
[1641645343083,13.49546845,145.27,145.22,2.13317711]
[1641645344282,6.88681519,145.27,145.22,2.13317711]
[1641645344683,6.88681519,145.27,145.24,27.66479]
[1641645344883,7.92877475,145.3,145.26,3.9999]
[1641645345084,6.88468158,145.32,145.26,3.9999]
[1641645345285,6.88468158,145.32,145.24,34.54679]
[1641645345886,6.88468158,145.32,145.27,2.13317711]
[1641645346887,6.88468158,145.32,145.27,29.79796711]
[1641645347087,6.88468158,145.32,145.27,27.66479]
[1641645347588,5.50442507,145.34,145.27,27.66479]
[1641645347988,5.50442507,145.34,145.28,2.13317711]
[1641645351391,10.1,145.35,145.29,3.9999]
[1641645351590,10.1,145.35,145.28,2.13317711]
[1641645352491,10.1,145.35,145.28,6.13307711]
[1641645352692,10.1,145.35,145.28,2.13317711]
[1641645353592,10.1,145.35,145.29,2.13317711]
[1641645354394,10.1,145.35,145.3,4.84844436]
[1641645355997,10.1,145.35,145.29,6.98162147]
[1641645356196,16.806,145.35,145.29,6.98162147]
[1641645356898,16.806,145.35,145.3,27.66479]
[1641645357701,10.1,145.35,145.3,27.66479]
[1641645358200,10.1,145.35,145.3,32.51323436]
[1641645361503,10.1,145.35,145.33,3.9999]
[1641645361704,6.88278615,145.36,145.33,3.9999]
[1641645361904,14.80538341,145.39,145.33,3.9999]
[1641645362106,14.80538341,145.39,145.32,3.9999]
[1641645363006,14.80538341,145.39,145.33,34.91501129]
[1641645363705,14.80538341,145.39,145.34,7.25022129]
[1641645364512,14.80538341,145.39,145.33,36.51313436]
[1641645365107,14.80538341,145.39,145.33,32.51323436]
[1641645365509,14.80538341,145.39,145.34,7.25441622]
[1641645368510,14.80538341,145.39,145.35,4.84844436]
[1641645371414,7.92401815,145.39,145.35,4.84844436]
[1641645372521,7.92401815,145.39,145.36,4.84844436]
[1641645372921,11.92401815,145.39,145.36,4.84844436]
[1641645373219,0.65514528,145.36,145.34,2.40597186]
[1641645373421,6.60300202,145.39,145.35,4.8624643]
[1641645373619,6.88183883,145.38,145.35,4.8624643]
[1641645374220,6.88183883,145.38,145.34,2.40597186]
[1641645374719,13.75983883,145.38,145.34,2.40597186]
[1641645376024,13.75983883,145.38,145.32,14.55707779]
[1641645376721,6.88183883,145.38,145.32,14.55707779]
[1641645377322,34.09,145.37,145.3,77.90793965]
[1641645377523,45.027,145.37,145.3,57.45793965]
[1641645377724,4.0,145.35,145.3,57.45793965]
[1641645377923,4.0,145.36,145.3,57.45793965]
[1641645378124,4.0,145.36,145.3,49.47793965]
[1641645378725,5.5042357,145.35,145.3,49.47793965]
[1641645379224,27.66479,145.34,145.3,49.47793965]
[1641645380429,27.66479,145.34,145.28,67.8528]
[1641645380430,5.50498646,145.33,145.28,67.8528]
[1641645380628,4.0,145.32,145.27,32.71179302]
[1641645380829,5.50610984,145.3,145.27,32.71179302]
[1641645381028,12.10110984,145.3,145.22,64.1538]
[1641645381238,27.66479,145.28,145.23,63.3747]
[1641645382332,6.60631543,145.32,145.25,3.9999]
[1641645382531,6.6030735,145.39,145.29,3.9999]
[1641645382731,6.6030735,145.39,145.3,3.9999]
[1641645382933,6.6030735,145.39,145.3,11.9599]
[1641645383331,6.6030735,145.39,145.32,27.66479]
[1641645383531,10.6030735,145.39,145.32,27.66479]
[1641645383734,5.50380094,145.36,145.32,27.66479]
[1641645384633,5.50380094,145.36,145.31,67.3993]
[1641645385031,5.50380094,145.36,145.3,27.66479]
[1641645385231,5.50463803,145.34,145.3,27.66479]
[1641645385632,5.50501018,145.33,145.28,67.576]
[1641645386032,5.5057669,145.31,145.26,27.66479]
[1641645388633,9.5057669,145.31,145.26,27.66479]
[1641645388834,5.50639132,145.29,145.26,27.66479]
[1641645389435,6.60600374,145.33,145.26,27.66479]
[1641645389635,6.60600374,145.33,145.26,33.72979]
[1641645395040,4.0,145.32,145.26,33.72979]
[1641645395242,5.50582949,145.31,145.26,33.72979]
[1641645395641,12.39122213,145.31,145.26,33.72979]
[1641645395844,12.39122213,145.31,145.26,27.66479]
[1641645396548,5.50653278,145.29,145.26,27.66479]
[1641645396747,13.66153278,145.29,145.26,27.66479]
[1641645400447,13.66153278,145.29,145.24,27.66479]
[1641645402250,6.88539264,145.31,145.24,27.66479]
[1641645402454,6.88539264,145.31,145.24,95.54019]
[1641645402653,6.88539264,145.31,145.24,101.46019]
[1641645404754,12.39110271,145.31,145.24,101.46019]
[1641645404954,12.39110271,145.31,145.24,95.54019]
[1641645405757,16.39110271,145.31,145.24,95.54019]
[1641645405956,27.66479,145.3,145.24,95.54019]
[1641645406158,36.27379,145.3,145.24,95.54019]
[1641645407658,8.609,145.3,145.24,95.54019]
[1641645407857,14.02874741,145.33,145.24,99.54009]
[1641645408060,5.50474741,145.33,145.24,127.20488]
[1641645408258,5.50474741,145.33,145.28,14.61988117]
[1641645408458,5.50474741,145.33,145.28,22.05988117]
[1641645409361,5.50474741,145.33,145.29,14.61988117]
[1641645409962,9.50571086,145.31,145.29,14.61988117]
[1641645410162,5.50571086,145.31,145.29,14.61988117]
[1641645413367,5.50571086,145.31,145.3,14.61988117]
[1641645414368,5.50571086,145.31,145.29,14.61988117]
[1641645416167,5.50571086,145.31,145.3,14.61988117]
[1641645417267,6.6048385,145.35,145.3,21.57788117]
[1641645417468,6.6048385,145.35,145.3,25.57778117]
[1641645417669,6.6048385,145.35,145.3,21.57788117]
[1641645418067,10.42,145.36,145.3,49.24267117]
[1641645418268,10.42,145.36,145.33,14.61988117]
[1641645418867,5.50411884,145.35,145.33,14.61988117]
[1641645419068,12.28611884,145.35,145.33,14.61988117]
[1641645420272,12.28611884,145.35,145.32,14.61988117]
[1641645420873,6.782,145.35,145.32,14.61988117]
[1641645421073,13.48555849,145.38,145.32,14.61988117]
[1641645421672,13.48555849,145.38,145.33,14.61988117]
[1641645421872,19.5510117,145.37,145.33,14.61988117]
[1641645422472,19.5510117,145.37,145.32,14.61988117]
[1641645423274,23.5510117,145.37,145.31,17.09771824]
[1641645423475,19.5510117,145.37,145.31,17.09771824]
[1641645423874,25.0547538,145.36,145.31,17.09771824]
[1641645424574,5.5037421,145.36,145.31,17.09771824]
[1641645426575,5.50421338,145.35,145.31,17.09771824]
[1641645427476,13.90521338,145.35,145.31,17.09771824]
[1641645428477,13.90521338,145.35,145.32,14.61988117]
[1641645429278,8.401,145.35,145.32,14.61988117]
[1641645429478,5.50389018,145.36,145.32,14.61988117]
[1641645429678,5.50389018,145.36,145.31,17.09771824]
[1641645429880,6.88207563,145.38,145.31,17.09771824]
[1641645430482,6.88207563,145.38,145.32,14.61988117]
[1641645430780,19.55059789,145.37,145.32,14.61988117]
[1641645431584,25.41659789,145.37,145.32,14.61988117]
[1641645431983,19.55059789,145.36,145.32,14.61988117]
[1641645433585,19.55059789,145.36,145.35,4.87059317]
[1641645434489,19.55059789,145.36,145.31,17.09771824]
[1641645436091,19.55059789,145.36,145.34,4.87133867]
[1641645436689,19.55059789,145.36,145.31,17.09771824]
[1641645436893,19.55059789,145.36,145.33,14.61988117]
[1641645437090,19.55059789,145.37,145.33,14.61988117]
[1641645438592,19.55059789,145.37,145.36,4.87392406]
[1641645438991,29.67059789,145.37,145.36,4.87392406]
[1641645439194,29.67059789,145.37,145.33,14.61988117]
[1641645439692,19.55059789,145.36,145.33,14.61988117]
[1641645440495,27.88559789,145.36,145.33,14.61988117]
[1641645441196,13.8388149,145.36,145.33,14.61988117]
[1641645441794,5.50455149,145.34,145.33,14.61988117]
[1641645442397,25.05893266,145.34,145.33,14.61988117]
[1641645442597,25.05893266,145.34,145.31,17.09771824]
[1641645442999,5.50455149,145.34,145.31,17.09771824]
[1641645443997,5.50455149,145.34,145.31,16.09771824]
[1641645444197,5.50455149,145.34,145.31,14.61988117]
[1641645445298,19.55584492,145.33,145.31,14.61988117]
[1641645445997,19.55584492,145.33,145.3,14.61988117]
[1641645447599,5.50455149,145.34,145.3,14.61988117]
[1641645448302,19.55497601,145.33,145.31,14.61988117]
[1641645449605,20.49398679,145.37,145.31,14.61988117]
[1641645449807,15.62339362,145.37,145.3,38.94717583]
[1641645450405,19.55255044,145.36,145.3,38.94717583]
[1641645450604,5.50438084,145.34,145.3,38.94717583]
[1641645451103,19.55255044,145.33,145.3,38.94717583]
[1641645451806,5.50432279,145.35,145.3,38.94717583]
[1641645452004,5.50432279,145.35,145.29,38.94717583]
[1641645452504,19.55255044,145.34,145.29,38.94717583]
[1641645452904,19.55255044,145.34,145.28,81.61689316]
[1641645453103,25.05723782,145.34,145.28,81.61689316]
[1641645453304,33.46623782,145.34,145.28,81.61689316]
[1641645453804,19.55255044,145.33,145.28,81.61689316]
[1641645455508,19.55255044,145.33,145.28,66.61196583]
[1641645455807,19.55255044,145.33,145.28,27.66479]
[1641645456809,19.55255044,145.33,145.28,31.66469]
[1641645457411,5.50468738,145.34,145.28,31.66469]
[1641645458012,5.50468738,145.34,145.28,27.66479]
[1641645458213,9.50468738,145.34,145.28,27.66479]
[1641645458415,5.50509017,145.33,145.28,27.66479]
[1641645458615,5.50580844,145.31,145.29,38.94717583]
[1641645459213,5.50580844,145.31,145.28,66.61196583]
[1641645460215,5.50580844,145.31,145.28,27.66479]
[1641645460413,35.35979,145.33,145.28,27.66479]
[1641645460615,40.86461761,145.33,145.28,27.66479]
[1641645461016,19.5562236,145.32,145.28,27.66479]
[1641645462622,13.19982761,145.33,145.28,27.66479]
[1641645463724,13.19982761,145.33,145.28,66.61196583]
[1641645464624,5.5056616,145.31,145.28,66.61196583]
[1641645464825,7.695,145.33,145.28,66.61196583]
[1641645465024,5.50450804,145.34,145.28,66.61196583]
[1641645465624,19.55498494,145.33,145.28,66.61196583]
[1641645465824,26.61498494,145.33,145.28,66.61196583]
[1641645466225,19.55498494,145.32,145.28,66.61196583]
[1641645466924,19.55498494,145.32,145.31,14.63492967]
[1641645468028,7.06,145.33,145.31,14.63492967]
[1641645468726,19.55521916,145.32,145.31,14.63492967]
[1641645469228,7.06,145.33,145.31,14.63492967]
[1641645469427,7.06,145.33,145.29,63.2491]
[1641645469928,5.50548606,145.31,145.28,38.94717583]
[1641645470128,5.50548606,145.31,145.28,34.94717583]
[1641645471431,5.50844193,145.24,145.19,66.38252594]
[1641645471633,4.0,145.2,145.09,65.5451]
[1641645471833,33.82644193,145.24,145.15,62.03467211]
[1641645472032,5.51222485,145.14,145.08,114.88860414]
[1641645472232,15.97122485,145.14,145.08,80.46860414]
[1641645472432,11.97122485,145.14,145.08,77.80860414]
[1641645472632,11.97122485,145.14,145.08,58.78860414]
[1641645473033,27.66479,145.12,145.06,126.4029]
[1641645473434,14.61988117,145.1,145.06,126.4029]
[1641645473634,20.60788117,145.1,145.02,3.9999]
[1641645474234,4.85175948,145.08,145.0,64.6817]
[1641645474436,4.85175948,145.08,145.02,3.9999]
[1641645474634,4.85175948,145.08,145.01,3.9999]
[1641645475035,27.66479,145.07,145.0,64.6817]
[1641645475234,40.72054948,145.07,145.0,64.6817]
[1641645475835,40.72054948,145.07,145.0,66.4047]
[1641645476035,35.86879,145.07,145.0,66.4047]
[1641645476234,35.86879,145.07,145.0,64.6817]
[1641645477136,35.86879,145.07,145.0,68.6816]
[1641645477338,35.86879,145.07,145.0,64.6817]
[1641645478137,23.58280673,145.06,145.0,64.6817]